fUSD/lending_fUSD_20260610
["ID","MTS","AMOUNT","RATE_DAILY","PERIOD"]
[424662550,1781035869000,-500.0,0.0003497,2]
[424662552,1781035869000,-1000.0,0.0003497,2]
[424662553,1781035869000,-825.855948,0.00034978,120]
[424662551,1781035869000,-1000.0,0.0003497,2]
[424662556,1781035869000,-500.0,0.00034986,30]
[424662561,1781035869000,-599.60298507,0.00034999,15]
[424662557,1781035869000,-151.0,0.00034997,14]
[424662560,1781035869000,-578.20924308,0.00034999,15]
[424662562,1781035869000,-621.78829552,0.00034999,15]
[424662555,1781035869000,-284.37432165,0.00034986,30]
[424662559,1781035869000,-150.0,0.00034997,7]
[424662542,1781035869000,-284.37432165,0.00034947,30]
[424662548,1781035869000,-593.60148306,0.00034969,7]
[424662536,1781035869000,-1429.7348,0.00034908,2]
[424662524,1781035869000,-593.60148306,0.00034897,7]
[424662539,1781035869000,-1000.0,0.00034924,30]
[424662564,1781035869000,-668.65185756,0.00034999,15]
[424662511,1781035869000,-151.0,0.00034864,2]
[424662510,1781035869000,-150.0,0.00034864,2]
[424662513,1781035869000,-284.37432165,0.00034869,30]
[424662514,1781035869000,-500.0,0.00034869,30]
[424662512,1781035869000,-2254.0,0.00034864,2]
[424662518,1781035869000,-163.0,0.0003488,60]
[424662515,1781035869000,-284.37432165,0.00034879,30]
[424662520,1781035869000,-150.0,0.00034881,7]
[424662519,1781035869000,-160.0,0.0003488,60]
[424662516,1781035869000,-500.0,0.00034879,30]
[424662521,1781035869000,-1000.0,0.00034885,30]
[424662517,1781035869000,-163.0,0.0003488,60]
[424662522,1781035869000,-150.0,0.00034887,2]
[424662523,1781035869000,-174.71291421,0.00034897,7]
[424662525,1781035869000,-150.0,0.000349,2]
[424662526,1781035869000,-150.0,0.000349,2]
[424662528,1781035869000,-1500.0,0.000349,7]
[424662531,1781035869000,-150.0,0.00034904,7]
[424662527,1781035869000,-193.877,0.000349,2]
[424662530,1781035869000,-200.0,0.000349,10]
[424662529,1781035869000,-654.0,0.000349,60]
[424662533,1781035869000,-151.0,0.00034908,7]
[424662532,1781035869000,-150.0,0.00034904,7]
[424662538,1781035869000,-150.0,0.0003492,7]
[424662535,1781035869000,-151.0,0.00034908,7]
[424662563,1781035869000,-644.79446245,0.00034999,15]
[424662565,1781035869000,-693.39197629,0.00034999,15]
[424662566,1781035869000,-594.29767617,0.00034999,15]
[424662597,1781035869000,-801.85129954,0.00034999,7]
[424662594,1781035869000,-773.24136889,0.00034999,7]
[424662599,1781035869000,-166.6875,0.00034999,7]
[424662601,1781035869000,-151.17033375,0.00034999,7]
[424662598,1781035869000,-151.0,0.00034999,7]
[424662600,1781035869000,-201.93286098,0.00034999,7]
[424662602,1781035869000,-831.51979762,0.00034999,7]
[424662607,1781035869000,-862.28603014,0.00034999,7]
[424662612,1781035869000,-894.19061325,0.00034999,7]
[424662606,1781035869000,-151.17033375,0.00034999,7]
[424662613,1781035869000,-225.18697532,0.00034999,7]
[424662604,1781035869000,-209.40437684,0.00034999,7]
[424662605,1781035869000,-166.6875,0.00034999,7]
[424662610,1781035869000,-151.17033375,0.00034999,7]
[424662608,1781035869000,-151.0,0.00034999,7]
[424662611,1781035869000,-166.6875,0.00034999,7]
[424662609,1781035869000,-217.15233878,0.00034999,7]
[424662603,1781035869000,-151.0,0.00034999,7]
[424662615,1781035869000,-166.6875,0.00034999,7]
[424662614,1781035869000,-151.17033393,0.00034999,7]
[424662621,1781035869000,-242.15909246,0.00034999,7]
[424662616,1781035869000,-927.27566594,0.00034999,7]
[424662617,1781035869000,-233.5188934,0.00034999,7]
[424662618,1781035869000,-151.0,0.00034999,7]
[424662620,1781035869000,-166.6875,0.00034999,7]
[424662593,1781035869000,-151.0,0.00034999,7]
[424662595,1781035869000,-151.17033375,0.00034999,7]
[424662619,1781035869000,-929.21418254,0.00034999,7]
[424662591,1781035869000,-187.78006524,0.00034999,7]
[424662596,1781035869000,-194.72792766,0.00034999,7]
[424662568,1781035869000,-154.6875,0.00034999,7]
[424662577,1781035869000,-166.6875,0.00034999,7]
[424662576,1781035869000,-154.6875,0.00034999,7]
[424662567,1781035869000,-166.6875,0.00034999,7]
[424662578,1781035869000,-151.17033375,0.00034999,7]
[424662579,1781035869000,-154.6875,0.00034999,7]
[424662572,1781035869000,-151.17033375,0.00034999,7]
[424662569,1781035869000,-166.6875,0.00034999,7]
[424662570,1781035869000,-154.6875,0.00034999,7]
[424662574,1781035869000,-166.6875,0.00034999,7]
[424662575,1781035869000,-151.17033375,0.00034999,7]
[424662571,1781035869000,-166.6875,0.00034999,7]
[424662581,1781035869000,-166.6875,0.00034999,7]
[424662573,1781035869000,-154.6875,0.00034999,7]
[424662586,1781035869000,-151.17033375,0.00034999,7]
[424662585,1781035869000,-719.04747942,0.00034999,7]
[424662582,1781035869000,-151.17033375,0.00034999,7]
[424662590,1781035869000,-151.17033375,0.00034999,7]
[424662583,1781035869000,-154.6875,0.00034999,7]
[424662592,1781035869000,-166.6875,0.00034999,7]
[424662589,1781035869000,-745.65223615,0.00034999,7]
[424662587,1781035869000,-166.6875,0.00034999,7]
[424662588,1781035869000,-181.08010149,0.00034999,7]
[424662580,1781035869000,-693.39197629,0.00034999,7]
[424662584,1781035869000,-174.61919141,0.00034999,7]
[424662648,1781035870000,-340.68333665,0.00034999,7]
[424662660,1781035870000,-152.0,0.00034999,7]
[424662670,1781035870000,-500.0,0.00034999,7]
[424662658,1781035870000,-250.0,0.00034999,7]
[424662657,1781035870000,-151.0,0.00034999,7]
[424662651,1781035870000,-152.0,0.00034999,7]
[424662653,1781035870000,-209.40437684,0.00034999,7]
[424662652,1781035870000,-151.0,0.00034999,7]
[424662649,1781035870000,-151.0,0.00034999,7]
[424662659,1781035870000,-151.0,0.00034999,7]
[424662655,1781035870000,-250.0,0.00034999,7]
[424662661,1781035870000,-217.15233878,0.00034999,7]
[424662674,1781035870000,-225.18697532,0.00034999,7]
[424662663,1781035870000,-166.6875,0.00034999,7]
[424662664,1781035870000,-500.0,0.00034999,7]
[424662667,1781035870000,-151.0,0.00034999,7]
[424662669,1781035870000,-250.0,0.00034999,7]
[424662666,1781035870000,-250.0,0.00034999,7]
[424662668,1781035870000,-166.6875,0.00034999,7]
[424662665,1781035870000,-151.0,0.00034999,7]
[424662671,1781035870000,-152.0,0.00034999,7]
[424662673,1781035870000,-151.0,0.00034999,7]
[424662672,1781035870000,-151.0,0.00034999,7]
[424662679,1781035870000,-233.5188934,0.00034999,7]
[424662650,1781035870000,-151.0,0.00034999,7]
[424662662,1781035870000,-151.0,0.00034999,7]
[424662654,1781035870000,-500.0,0.00034999,7]
[424662637,1781035870000,-151.0,0.00034999,7]
[424662643,1781035870000,-500.0,0.00034999,7]
[424662678,1781035870000,-152.0,0.00034999,7]
[424662624,1781035870000,-251.11897888,0.00034999,7]
[424662622,1781035870000,-209.40437684,0.00034999,7]
[424662623,1781035870000,-151.0,0.00034999,7]
[424662625,1781035870000,-217.15233878,0.00034999,7]
[424662627,1781035870000,-151.0,0.00034999,7]
[424662634,1781035870000,-166.6875,0.00034999,7]
[424662633,1781035870000,-151.0,0.00034999,7]
[424662626,1781035870000,-166.6875,0.00034999,7]
[424662628,1781035870000,-250.0,0.00034999,7]
[424662632,1781035870000,-284.37432165,0.00034999,30]
[424662629,1781035870000,-260.4103811,0.00034999,7]
[424662635,1781035870000,-250.0,0.00034999,7]
[424662630,1781035870000,-302.11034613,0.00034999,7]
[424662631,1781035870000,-151.0,0.00034999,7]
[424662646,1781035870000,-250.0,0.00034999,7]
[424662647,1781035870000,-166.6875,0.00034999,7]
[424662638,1781035870000,-250.0,0.00034999,7]
[424662636,1781035870000,-270.0455652,0.00034999,7]
[424662641,1781035870000,-151.0,0.00034999,7]
[424662644,1781035870000,-151.0,0.00034999,7]
[424662640,1781035870000,-189.40909962,0.00034999,7]
[424662645,1781035870000,-151.0,0.00034999,7]
[424662642,1781035870000,-152.0,0.00034999,7]
[424662639,1781035870000,-166.6875,0.00034999,7]
[424662656,1781035870000,-166.6875,0.00034999,7]
[424662677,1781035870000,-500.0,0.00034999,7]
[424662734,1781035870000,-151.0,0.00034999,7]
[424662681,1781035870000,-151.0,0.00034999,7]
[424662708,1781035870000,-152.0,0.00034999,7]
[424662714,1781035870000,-152.0,0.00034999,7]
[424662711,1781035870000,-151.0,0.00034999,7]
[424662712,1781035870000,-151.0,0.00034999,7]
[424662710,1781035870000,-271.32414999,0.00034999,7]
[424662713,1781035870000,-288.07252783,0.00034999,7]
[424662716,1781035870000,-151.0,0.00034999,7]
[424662715,1781035870000,-500.0,0.00034999,7]
[424662718,1781035870000,-500.0,0.00034999,7]
[424662719,1781035870000,-151.0,0.00034999,7]
[424662717,1781035870000,-151.0,0.00034999,7]
[424662727,1781035870000,-151.0,0.00034999,7]
[424662723,1781035870000,-151.0,0.00034999,7]
[424662721,1781035870000,-500.0,0.00034999,7]
[424662724,1781035870000,-151.0,0.00034999,7]
[424662720,1781035870000,-151.0,0.00034999,7]
[424662726,1781035870000,-151.0,0.00034999,7]
[424662725,1781035870000,-151.0,0.00034999,7]
[424662729,1781035870000,-151.0,0.00034999,7]
[424662728,1781035870000,-151.0,0.00034999,7]
[424662730,1781035870000,-151.0,0.00034999,7]
[424662731,1781035870000,-151.0,0.00034999,7]
[424662732,1781035870000,-151.0,0.00034999,7]
[424662675,1781035870000,-151.0,0.00034999,7]
[424662733,1781035870000,-151.0,0.00034999,7]
[424662706,1781035870000,-151.0,0.00034999,7]
[424662709,1781035870000,-500.0,0.00034999,7]
[424662722,1781035870000,-151.0,0.00034999,7]
[424662705,1781035870000,-500.0,0.00034999,7]
[424662676,1781035870000,-151.0,0.00034999,7]
[424662680,1781035870000,-151.0,0.00034999,7]
[424662707,1781035870000,-280.03725111,0.00034999,7]
[424662692,1781035870000,-151.0,0.00034999,7]
[424662693,1781035870000,-251.11897888,0.00034999,7]
[424662682,1781035870000,-151.0,0.00034999,7]
[424662691,1781035870000,-500.0,0.00034999,7]
[424662686,1781035870000,-242.15909246,0.00034999,7]
[424662685,1781035870000,-151.0,0.00034999,7]
[424662684,1781035870000,-152.0,0.00034999,7]
[424662683,1781035870000,-151.0,0.00034999,7]
[424662689,1781035870000,-151.0,0.00034999,7]
[424662688,1781035870000,-151.0,0.00034999,7]
[424662687,1781035870000,-151.0,0.00034999,7]
[424662700,1781035870000,-151.0,0.00034999,7]
[424662704,1781035870000,-152.0,0.00034999,7]
[424662690,1781035870000,-152.0,0.00034999,7]
[424662699,1781035870000,-260.4103811,0.00034999,7]
[424662702,1781035870000,-151.0,0.00034999,7]
[424662695,1781035870000,-151.0,0.00034999,7]
[424662703,1781035870000,-270.0455652,0.00034999,7]
[424662696,1781035870000,-500.0,0.00034999,30]
[424662697,1781035870000,-249.33485306,0.00034999,7]
[424662694,1781035870000,-151.0,0.00034999,7]
[424662698,1781035870000,-152.0,0.00034999,7]
[424662701,1781035870000,-151.0,0.00034999,7]
[424662776,1781035871000,-700.52363229,0.00035,5]
[424662775,1781035871000,-220.34273582,0.00035,120]
[424662770,1781035871000,-500.0,0.00035,120]
[424662773,1781035871000,-2354.79066608,0.00035,120]
[424662774,1781035871000,-800.32521514,0.00035,120]
[424662766,1781035871000,-385.67261702,0.00035,7]
[424662771,1781035871000,-288673.83327053,0.00035,7]
[424662769,1781035871000,-192.83630851,0.00035,7]
[424662765,1781035871000,-10000.0,0.00035,2]
[424662767,1781035871000,-385.67261702,0.00035,7]
[424662777,1781035871000,-200.0,0.00035,120]
[424662772,1781035871000,-288673.83327053,0.00035,7]
[424662778,1781035871000,-511.53454058,0.00035,60]
[424662789,1781035871000,-151.0,0.00035,7]
[424662780,1781035871000,-200.0,0.00035,2]
[424662782,1781035871000,-152.0,0.00035,7]
[424662781,1781035871000,-246.9,0.00035,2]
[424662785,1781035871000,-151.0,0.00035,7]
[424662783,1781035871000,-152.0,0.00035,7]
[424662784,1781035871000,-246.72228664,0.00035,7]
[424662786,1781035871000,-170.0,0.00035,10]
[424662787,1781035871000,-256.796887,0.00035,7]
[424662790,1781035871000,-151.0,0.00035,7]
[424662788,1781035871000,-1233.99,0.00035,120]
[424662792,1781035871000,-500.0,0.00035,2]
[424662768,1781035871000,-192.83630851,0.00035,7]
[424662779,1781035871000,-2000.0,0.00035,2]
[424662764,1781035871000,-1008.285819,0.00035,120]
[424662738,1781035871000,-159.05074,0.00034999,7]
[424662762,1781035871000,-771.34523405,0.00035,7]
[424662791,1781035871000,-500.0,0.00035,2]
[424662739,1781035871000,-151.0,0.00034999,7]
[424662736,1781035871000,-159.05074,0.00034999,7]
[424662737,1781035871000,-159.05074,0.00034999,7]
[424662735,1781035871000,-159.05074,0.00034999,7]
[424662740,1781035871000,-151.0,0.00034999,7]
[424662742,1781035871000,-151.0,0.00034999,7]
[424662744,1781035871000,-150.0,0.00034999,120]
[424662743,1781035871000,-150.0,0.00034999,120]
[424662750,1781035871000,-700.0,0.00035,60]
[424662749,1781035871000,-150.956,0.00035,2]
[424662751,1781035871000,-500.0,0.00035,60]
[424662741,1781035871000,-151.0,0.00034999,7]
[424662745,1781035871000,-242.366668,0.00034999,120]
[424662747,1781035871000,-150.0,0.00035,2]
[424662748,1781035871000,-150.0,0.00035,2]
[424662746,1781035871000,-150.0,0.00034999,7]
[424662753,1781035871000,-233.92783096,0.00035,7]
[424662763,1781035871000,-771.34523405,0.00035,7]
[424662752,1781035871000,-403364.65781654,0.00035,120]
[424662755,1781035871000,-271.81925796,0.00035,120]
[424662754,1781035871000,-233.92783096,0.00035,7]
[424662756,1781035871000,-1000.0,0.00035,30]
[424662757,1781035871000,-1219.51181894,0.00035,4]
[424662758,1781035871000,-1013.80244452,0.00035,120]
[424662761,1781035871000,-200.0,0.00035,14]
[424662759,1781035871000,-200.0,0.00035,3]
[424662760,1781035871000,-150.0,0.00035,4]
[424662794,1781035871000,-500.0,0.00035,2]
[424662846,1781035871000,-5424.4458883,0.00035,120]
[424662796,1781035871000,-500.0,0.00035,2]
[424662824,1781035871000,-151.0,0.00035,7]
[424662826,1781035871000,-200.0,0.00035,2]
[424662827,1781035871000,-1129.0,0.00035,7]
[424662828,1781035871000,-2000.0,0.00035,61]
[424662832,1781035871000,-2686.53553574,0.00035,2]
[424662829,1781035871000,-2000.0,0.00035,61]
[424662833,1781035871000,-350.0,0.00035,37]
[424662834,1781035871000,-333.18,0.00035,7]
[424662831,1781035871000,-195.042,0.00035,31]
[424662830,1781035871000,-3051.57987969,0.00035,2]
[424662836,1781035871000,-1521.509571,0.00035,17]
[424662838,1781035871000,-166.0,0.00035,7]
[424662835,1781035871000,-200.0,0.00035,120]
[424662840,1781035871000,-166.0,0.00035,7]
[424662841,1781035871000,-166.0,0.00035,7]
[424662847,1781035871000,-4018.10589304,0.00035,30]
[424662844,1781035871000,-166.0,0.00035,7]
[424662842,1781035871000,-166.0,0.00035,7]
[424662837,1781035871000,-2479.41475599,0.00035,2]
[424662843,1781035871000,-166.0,0.00035,7]
[424662845,1781035871000,-166.0,0.00035,7]
[424662848,1781035871000,-1000.0,0.00035,120]
[424662850,1781035871000,-447.4216,0.00035,7]
[424662852,1781035871000,-2500.0,0.00035,3]
[424662851,1781035871000,-66776.0,0.00035,120]
[424662849,1781035871000,-442804.21782787,0.00035,90]
[424662839,1781035871000,-166.0,0.00035,7]
[424662825,1781035871000,-2657.0,0.00035,7]
[424662853,1781035871000,-150208.48516515,0.00035,30]
[424662815,1781035871000,-236.697592,0.00035,7]
[424662823,1781035871000,-189.85,0.00035,120]
[424662793,1781035871000,-500.0,0.00035,2]
[424662798,1781035871000,-200.0,0.00035,2]
[424662795,1781035871000,-500.0,0.00035,2]
[424662797,1781035871000,-500.0,0.00035,2]
[424662807,1781035871000,-500.0,0.00035,2]
[424662805,1781035871000,-500.0,0.00035,2]
[424662806,1781035871000,-500.0,0.00035,2]
[424662808,1781035871000,-500.0,0.00035,2]
[424662810,1781035871000,-150.0,0.00035,2]
[424662809,1781035871000,-500.0,0.00035,2]
[424662800,1781035871000,-500.0,0.00035,2]
[424662803,1781035871000,-500.0,0.00035,2]
[424662799,1781035871000,-500.0,0.00035,2]
[424662801,1781035871000,-500.0,0.00035,2]
[424662802,1781035871000,-500.0,0.00035,2]
[424662817,1781035871000,-236.697592,0.00035,7]
[424662821,1781035871000,-500.0,0.00035,120]
[424662820,1781035871000,-500.0,0.00035,120]
[424662816,1781035871000,-236.697592,0.00035,7]
[424662818,1781035871000,-236.697592,0.00035,7]
[424662814,1781035871000,-151.0,0.00035,7]
[424662819,1781035871000,-500.0,0.00035,120]
[424662822,1781035871000,-530.01586253,0.00035,120]
[424662813,1781035871000,-7552.33770885,0.00035,2]
[424662811,1781035871000,-12947.31345511,0.00035,2]
[424662804,1781035871000,-500.0,0.00035,2]
[424662812,1781035871000,-150.0,0.00035,2]
[424662889,1781035872000,-174.71291421,0.00035077,7]
[424662894,1781035872000,-817.801717,0.00035078,7]
[424662893,1781035872000,-817.801717,0.00035078,7]
[424662891,1781035872000,-2354.79066608,0.00035078,120]
[424662883,1781035872000,-174.71291421,0.00035041,7]
[424662892,1781035872000,-817.801717,0.00035078,7]
[424662887,1781035872000,-880.0,0.00035068,120]
[424662888,1781035872000,-150.0,0.00035074,7]
[424662886,1781035872000,-641.60457492,0.00035064,14]
[424662890,1781035872000,-593.60148306,0.00035077,7]
[424662895,1781035872000,-817.801717,0.00035078,7]
[424662901,1781035872000,-257.322789,0.00035078,7]
[424662896,1781035872000,-151.0,0.00035078,7]
[424662898,1781035872000,-151.0,0.00035078,7]
[424662900,1781035872000,-3154.436987,0.00035078,7]
[424662899,1781035872000,-151.0,0.00035078,7]
[424662884,1781035872000,-593.60148306,0.00035041,7]
[424662904,1781035872000,-3154.436987,0.00035078,7]
[424662902,1781035872000,-3154.436987,0.00035078,7]
[424662903,1781035872000,-3154.436987,0.00035078,7]
[424662906,1781035872000,-257.322789,0.00035078,7]
[424662914,1781035872000,-174.71291421,0.00035113,7]
[424662915,1781035872000,-593.60148306,0.00035113,7]
[424662905,1781035872000,-257.322789,0.00035078,7]
[424662916,1781035872000,-150.0,0.00035113,7]
[424662897,1781035872000,-151.0,0.00035078,7]
[424662885,1781035872000,-150.0,0.00035047,7]
[424662874,1781035872000,-2024.08696035,0.00035025,30]
[424662879,1781035872000,-151.0,0.00035033,7]
[424662907,1781035872000,-257.322789,0.00035078,7]
[424662858,1781035872000,-800.0,0.00035,13]
[424662855,1781035872000,-20000.0,0.00035,10]
[424662857,1781035872000,-151.93126683,0.00035,30]
[424662856,1781035872000,-650.7366,0.00035,5]
[424662854,1781035872000,-71593.88126113,0.00035,14]
[424662859,1781035872000,-800.0,0.00035,13]
[424662869,1781035872000,-234.0,0.00035024,3]
[424662860,1781035872000,-800.0,0.00035,13]
[424662861,1781035872000,-800.0,0.00035,13]
[424662864,1781035872000,-800.0,0.00035,13]
[424662868,1781035872000,-244.0,0.00035011,3]
[424662882,1781035872000,-150.0,0.00035036,7]
[424662866,1781035872000,-174.71291421,0.00035005,7]
[424662862,1781035872000,-800.0,0.00035,13]
[424662863,1781035872000,-800.0,0.00035,13]
[424662870,1781035872000,-6465.80478824,0.00035025,30]
[424662871,1781035872000,-2024.08696035,0.00035025,30]
[424662881,1781035872000,-150.0,0.00035034,7]
[424662880,1781035872000,-8572.59,0.00035033,2]
[424662872,1781035872000,-3328.71680134,0.00035025,30]
[424662873,1781035872000,-6465.80478824,0.00035025,30]
[424662876,1781035872000,-2371.06638376,0.0003503,7]
[424662877,1781035872000,-422.37,0.0003503,62]
[424662878,1781035872000,-2371.06638376,0.00035032,7]
[424662875,1781035872000,-3328.71680134,0.00035025,30]
[424662865,1781035872000,-800.0,0.00035,13]
[424662867,1781035872000,-593.60148306,0.00035005,7]
[424662911,1781035872000,-150.0,0.00035098,7]
[424662910,1781035872000,-150.0,0.00035094,7]
[424662945,1781035872000,-1000.0,0.000352,30]
[424662947,1781035872000,-1012.14841504,0.00035202,2]
[424662950,1781035872000,-593.60148306,0.00035221,7]
[424662948,1781035872000,-174.71291421,0.00035221,7]
[424662943,1781035872000,-150.0,0.00035191,7]
[424662946,1781035872000,-1000.0,0.00035202,2]
[424662949,1781035872000,-150.0,0.00035221,7]
[424662944,1781035872000,-1000.0,0.000352,30]
[424662951,1781035872000,-150.0,0.00035228,7]
[424662953,1781035872000,-1386.76513713,0.00035234,2]
[424662955,1781035872000,-2858.00355728,0.00035234,2]
[424662957,1781035872000,-3330.36009093,0.00035234,2]
[424662960,1781035872000,-3644.2367849,0.00035234,2]
[424662963,1781035872000,-1388.57905475,0.00035234,2]
[424662956,1781035872000,-1533.16170642,0.00035234,2]
[424662961,1781035872000,-3912.3089933,0.00035234,2]
[424662954,1781035872000,-1376.92353384,0.00035234,2]
[424662958,1781035872000,-2056.927659,0.00035234,2]
[424662962,1781035872000,-1394.41898677,0.00035234,2]
[424662964,1781035872000,-150.0,0.00035237,7]
[424662965,1781035872000,-224.834236,0.00035242,60]
[424662966,1781035872000,-2371.06638376,0.00035244,7]
[424662968,1781035872000,-174.71291421,0.00035257,7]
[424662967,1781035872000,-701.35668184,0.00035249,120]
[424662909,1781035872000,-2371.06638376,0.00035088,7]
[424662941,1781035872000,-1263.95186906,0.00035189,2]
[424662952,1781035872000,-150.0,0.00035229,7]
[424662959,1781035872000,-1548.50033279,0.00035234,2]
[424662935,1781035872000,-2281.64307407,0.00035189,2]
[424662908,1781035872000,-2354.79066608,0.00035082,120]
[424662942,1781035872000,-150.0,0.00035189,7]
[424662912,1781035872000,-150.0,0.00035108,7]
[424662913,1781035872000,-340.0,0.00035109,3]
[424662929,1781035872000,-495.14529561,0.00035165,120]
[424662928,1781035872000,-150.0,0.00035163,7]
[424662918,1781035872000,-344.0,0.00035119,3]
[424662917,1781035872000,-1181.13,0.00035118,30]
[424662920,1781035872000,-532.45040351,0.00035123,7]
[424662926,1781035872000,-8572.59,0.00035158,2]
[424662921,1781035872000,-150.0,0.00035142,7]
[424662925,1781035872000,-150.0,0.00035152,7]
[424662923,1781035872000,-174.71291421,0.00035149,7]
[424662919,1781035872000,-297.0,0.00035122,3]
[424662932,1781035872000,-2042.45404931,0.00035181,2]
[424662934,1781035872000,-593.60148306,0.00035185,7]
[424662922,1781035872000,-726.0,0.00035147,10]
[424662938,1781035872000,-1310.20514239,0.00035189,2]
[424662937,1781035872000,-1361.27005668,0.00035189,2]
[424662930,1781035872000,-532.45040351,0.00035173,7]
[424662939,1781035872000,-1220.62620224,0.00035189,2]
[424662940,1781035872000,-1236.24771755,0.00035189,2]
[424662936,1781035872000,-1250.64448872,0.00035189,2]
[424662931,1781035872000,-1834.03990324,0.00035181,2]
[424662927,1781035872000,-2354.79066608,0.00035161,120]
[424662924,1781035872000,-593.60148306,0.00035149,7]
[424662933,1781035872000,-174.71291421,0.00035185,7]
[424663007,1781035873000,-992.0,0.00035366,30]
[424663006,1781035873000,-593.60148306,0.00035365,7]
[424663008,1781035873000,-490.0,0.00035366,30]
[424663009,1781035873000,-424.0,0.00035366,30]
[424663003,1781035873000,-4019.0,0.00035353,30]
[424663001,1781035873000,-200.0,0.0003535,2]
[424663002,1781035873000,-200.0,0.0003535,2]
[424663004,1781035873000,-150.0,0.00035357,7]
[424662999,1781035873000,-1358.78611812,0.0003535,2]
[424663005,1781035873000,-174.71291421,0.00035365,7]
[424663010,1781035873000,-2340.0,0.00035366,30]
[424663000,1781035873000,-200.0,0.0003535,2]
[424663011,1781035873000,-514.0,0.00035366,30]
[424663023,1781035873000,-150.0,0.00035384,7]
[424663017,1781035873000,-6465.80478824,0.00035383,30]
[424663013,1781035873000,-240.0,0.00035366,30]
[424663014,1781035873000,-150.0,0.00035379,7]
[424663015,1781035873000,-151.0,0.0003538,120]
[424663016,1781035873000,-200.0,0.00035381,4]
[424663019,1781035873000,-3328.71680134,0.00035383,30]
[424663020,1781035873000,-6465.80478824,0.00035383,30]
[424663018,1781035873000,-2024.08696035,0.00035383,30]
[424663021,1781035873000,-2024.08696035,0.00035383,30]
[424663022,1781035873000,-3328.71680134,0.00035383,30]
[424663024,1781035873000,-200.0,0.00035387,5]
[424662998,1781035873000,-1917.0,0.00035346,30]
[424663012,1781035873000,-889.0,0.00035366,30]
[424662992,1781035873000,-641.60457491,0.00035338,14]
[424662975,1781035873000,-150.0,0.00035284,7]
[424662993,1781035873000,-150.0,0.00035342,2]
[424663031,1781035873000,-174.71291421,0.00035437,7]
[424662969,1781035873000,-593.60148306,0.00035257,7]
[424662972,1781035873000,-152.0,0.00035279,23]
[424662973,1781035873000,-305.439612,0.00035279,120]
[424662970,1781035873000,-150.0,0.00035268,7]
[424662974,1781035873000,-8572.59,0.00035282,2]
[424662971,1781035873000,-2371.06638376,0.00035269,7]
[424662976,1781035873000,-150.0,0.00035285,2]
[424662981,1781035873000,-593.60148306,0.00035293,7]
[424662977,1781035873000,-150.0,0.00035285,2]
[424662978,1781035873000,-150.0,0.00035285,2]
[424662980,1781035873000,-174.71291421,0.00035293,7]
[424662994,1781035873000,-150.0,0.00035345,7]
[424662979,1781035873000,-150.0,0.00035293,7]
[424662985,1781035873000,-150.0,0.00035307,7]
[424662982,1781035873000,-500.0,0.00035298,2]
[424662983,1781035873000,-2500.0,0.000353,14]
[424662987,1781035873000,-937.44,0.00035322,30]
[424662996,1781035873000,-672.0,0.00035346,30]
[424662995,1781035873000,-558.0,0.00035346,30]
[424662997,1781035873000,-560.0,0.00035346,30]
[424662986,1781035873000,-200.0,0.0003532,5]
[424662991,1781035873000,-150.0,0.00035332,7]